bitfinex-derivatives/quotes_SOLF0:USTF0_20250529
["timestamp","ask_amount","ask_price","bid_price","bid_amount"]
[1748542734002,5.9055,169.32,169.3,0.03772782]
[1748542735904,5.9057,169.31,169.3,0.03772782]
[1748542736309,0.04316844,169.33,169.3,0.03772782]
[1748542736515,5.9056,169.32,169.3,0.03772782]
[1748542736913,0.04316844,169.33,169.3,0.03772782]
[1748542737213,5.9054,169.32,169.3,0.03772782]
[1748542737616,0.04316844,169.33,169.3,0.03772782]
[1748542737913,5.9057,169.32,169.3,0.03772782]
[1748542738813,5.9057,169.31,169.3,0.03772782]
[1748542741712,5.9071,169.27,169.26,31.24]
[1748542742418,5.907,169.28,169.26,31.24]
[1748542746125,5.9071,169.27,169.26,31.24]
[1748542746425,0.0417227,169.29,169.25,0.04299518]
[1748542746925,5.9075,169.26,169.25,0.04299518]
[1748542753231,41.18030892,169.27,169.18,31.24]
[1748542753431,41.18030892,169.27,169.17,31.24]
[1748542753932,5.9095,169.21,169.17,37.1504]
[1748542754132,5.95273645,169.21,169.17,31.2853872]
[1748542755330,5.95273645,169.21,169.18,5.9102]
[1748542755531,0.04323645,169.21,169.17,31.2853872]
[1748542756138,5.9101,169.19,169.17,31.2853872]
[1748542756742,5.9097,169.2,169.17,31.2853872]
[1748542756946,0.04323645,169.21,169.17,31.2853872]
[1748542758045,0.04323645,169.21,169.2,5.9096]
[1748542758237,0.04323645,169.21,169.17,31.2853872]
[1748542758639,5.95243645,169.21,169.18,5.9101]
[1748542759443,0.04323645,169.21,169.17,0.0453872]
[1748542759940,5.9098,169.2,169.17,0.0453872]
[1748542760137,0.04323645,169.21,169.17,0.0453872]
[1748542760839,5.9098,169.2,169.17,0.0453872]
[1748542761634,5.9099,169.19,169.17,0.0453872]
[1748542765446,5.9097,169.2,169.17,0.0453872]
[1748542766646,5.9099,169.19,169.17,0.0453872]
[1748542767252,5.9097,169.2,169.17,0.0453872]
[1748542767950,5.9099,169.19,169.17,0.0453872]
[1748542770351,5.9103,169.18,169.17,0.0453872]
[1748542771850,5.9101,169.19,169.17,0.0453872]
[1748542772549,0.04323645,169.21,169.17,0.0453872]
[1748542773152,5.95253645,169.21,169.18,5.9101]
[1748542773952,5.95253645,169.21,169.19,5.9098]
[1748542774357,5.9097,169.2,169.17,0.0453872]
[1748542775152,5.9097,169.2,169.18,5.9102]
[1748542775352,5.9097,169.2,169.17,0.0453872]
[1748542775549,0.04323645,169.21,169.17,0.0453872]
[1748542776960,5.9101,169.19,169.17,0.0453872]
[1748542779454,5.9103,169.18,169.17,0.0453872]
[1748542784166,5.9103,169.18,169.09,127.18030892]
[1748542784167,0.04323645,169.21,169.11,31.26]
[1748542784371,5.9318,169.22,169.11,31.26]
[1748542784775,5.9119,169.14,169.11,31.26]
[1748542785270,5.95537143,169.14,169.11,31.30260212]
[1748542785476,0.04347143,169.14,169.11,37.21530212]
[1748542786569,5.95527143,169.14,169.11,37.21530212]
[1748542787573,5.95527143,169.14,169.12,5.9123]
[1748542787767,0.04347143,169.14,169.12,5.9123]
[1748542788669,5.95517143,169.14,169.12,5.9123]
[1748542789274,0.04347143,169.14,169.12,5.9123]
[1748542790066,0.04347143,169.14,169.11,37.21520212]
[1748542790478,5.95537143,169.14,169.11,37.21520212]
[1748542791382,0.04347143,169.14,169.12,5.9123]
[1748542792778,0.04347143,169.14,169.13,5.912]
[1748542796074,31.26,169.23,169.12,2.0209]
[1748542796474,5.9267,169.28,169.13,11.83310892]
[1748542796475,5.9094,169.21,169.13,11.83310892]
[1748542796680,5.9094,169.21,169.14,2.0631]
[1748542796875,5.9094,169.21,169.15,31.26]
[1748542797075,0.0409529,169.2,169.16,0.04273431]
[1748542798080,0.0409529,169.2,169.18,5.9099]
[1748542798882,5.9505529,169.2,169.17,5.9105]
[1748542799082,0.0409529,169.2,169.17,5.9105]
[1748542799484,5.9506529,169.2,169.17,5.9105]
[1748542799986,0.0409529,169.2,169.18,5.9102]
[1748542800887,5.9505529,169.2,169.17,5.9105]
[1748542801389,0.0409529,169.2,169.16,0.04273431]
[1748542801588,0.0409529,169.2,169.16,5.95363431]
[1748542801589,5.9101,169.19,169.16,5.95363431]
[1748542802178,5.9103,169.18,169.16,0.04273431]
[1748542802988,0.0409529,169.2,169.16,0.04273431]
[1748542804488,5.9106,169.17,169.16,0.04273431]
[1748542808587,5.9105,169.18,169.16,0.04273431]
[1748542808991,0.0409529,169.2,169.16,0.04273431]
[1748542809188,0.0409529,169.2,169.16,31.30273431]
[1748542809693,0.0409529,169.2,169.18,5.9101]
[1748542810388,0.0409529,169.2,169.19,5.9099]
[1748542811393,0.0409529,169.2,169.16,37.31543431]
[1748542811597,0.0409529,169.2,169.16,31.30273431]
[1748542812693,0.0409529,169.2,169.17,5.9104]
[1748542813389,0.0409529,169.2,169.18,5.9103]
[1748542813693,0.0409529,169.2,169.16,31.30273431]
[1748542815096,0.0409529,169.2,169.17,5.9105]
[1748542815992,5.9507529,169.2,169.17,5.9105]
[1748542816298,5.9507529,169.2,169.16,5.95353431]
[1748542816591,5.9101,169.19,169.16,5.95353431]
[1748542816891,0.0409529,169.2,169.16,5.95353431]
[1748542817697,0.0409529,169.2,169.17,5.9105]
[1748542818098,0.0409529,169.2,169.16,0.04273431]
[1748542818302,0.0409529,169.2,169.19,5.9099]
[1748542821900,0.0409529,169.2,169.19,37.1499]
[1748542822293,81.93525438,169.29,169.25,5.9078]
[1748542822799,81.93525438,169.29,169.26,5.9073]
[1748542823296,81.97391717,169.29,169.26,0.04037186]
[1748542823797,5.907,169.28,169.26,0.04037186]
[1748542823996,5.907,169.28,169.26,5.94787186]
[1748542824500,81.97391717,169.29,169.26,0.04037186]
[1748542824798,0.03866279,169.29,169.26,0.04037186]
[1748542824998,0.03866279,169.29,169.27,5.9069]
[1748542826604,0.03866279,169.29,169.26,0.04037186]
[1748542827006,510.6,169.4,169.27,31.24]
[1748542827007,31.24,169.38,169.27,31.24]
[1748542827305,5.9038,169.37,169.34,5.9046]
[1748542827596,5.9038,169.37,169.33,5.9047]
[1748542828109,5.904,169.36,169.33,5.94403043]
[1748542828501,0.04254348,169.37,169.34,5.9047]
[1748542828704,0.04254348,169.37,169.33,0.03933043]
[1748542829002,5.9044,169.35,169.33,0.03933043]
[1748542829202,0.04254348,169.37,169.33,0.03933043]
[1748542829604,0.04254348,169.37,169.34,5.9045]
[1748542829807,0.04254348,169.37,169.33,0.03933043]
[1748542831207,5.9046,169.35,169.33,0.03933043]
[1748542831409,0.04254348,169.37,169.33,0.03933043]
[1748542832307,0.04254348,169.37,169.23,31.22]
[1748542832308,9.9828524,169.37,169.23,31.22]
[1748542832511,5.9052,169.33,169.23,31.22]
[1748542832710,31.22,169.34,169.23,31.22]
[1748542833011,37.1247,169.34,169.29,5.9062]
[1748542833308,37.1247,169.34,169.3,0.03748491]
[1748542833309,0.03875304,169.33,169.3,0.03748491]
[1748542834099,0.03875304,169.33,169.3,5.94328491]
[1748542834305,0.03875304,169.33,169.3,0.03748491]
[1748542834709,0.03875304,169.33,169.3,5.94328491]
[1748542835513,0.03875304,169.33,169.3,0.03748491]
[1748542835819,3.98695304,169.33,169.23,31.22]
[1748542836013,3.98695304,169.33,169.25,5.9076]
[1748542836206,1.8998,169.32,169.23,31.22]
[1748542836405,1.8998,169.32,169.2,3.8162]
[1748542836406,1.8998,169.32,169.2,35.0362]
[1748542836610,0.04025773,169.28,169.24,0.04109546]
[1748542837612,5.94725773,169.28,169.24,0.04109546]
[1748542838116,0.04025773,169.28,169.24,0.04109546]
[1748542838618,5.9072,169.27,169.24,5.94919546]
[1748542838815,0.04025773,169.28,169.24,0.04109546]
[1748542839210,5.9072,169.27,169.24,0.04109546]
[1748542840018,0.04025773,169.28,169.24,0.04109546]
[1748542840610,5.9074,169.27,169.24,0.04109546]
[1748542841410,5.9074,169.27,169.24,5.94909546]
[1748542841713,5.9075,169.26,169.24,0.04109546]
[1748542842219,0.04025773,169.28,169.24,0.04109546]
[1748542842613,0.04025773,169.28,169.24,5.94909546]
[1748542842915,0.04025773,169.28,169.24,0.04109546]
[1748542843919,0.04025773,169.28,169.27,5.9071]
[1748542845421,0.04025773,169.28,169.24,0.04109546]
[1748542845922,5.9078,169.25,169.24,0.04109546]
[1748542846621,0.04025773,169.28,169.24,0.04109546]
[1748542847223,5.9074,169.27,169.24,0.04109546]
[1748542848317,5.9075,169.26,169.24,0.04109546]
[1748542848517,0.04025773,169.28,169.24,0.04109546]
[1748542848924,5.9075,169.26,169.24,0.04109546]
[1748542849112,0.04025773,169.28,169.24,0.04109546]
[1748542849318,0.04025773,169.28,169.24,5.94919546]
[1748542849928,5.9074,169.27,169.24,0.04109546]
[1748542850621,0.04025773,169.28,169.24,0.04109546]
[1748542851626,5.9078,169.25,169.24,0.04109546]
[1748542855830,5.9096,169.2,169.16,33.9555]
[1748542856031,9.94030892,169.28,169.18,5.9102]
[1748542856234,5.9087,169.23,169.16,33.9555]
[1748542856735,0.03918735,169.21,169.19,5.9097]
[1748542857038,5.9089,169.22,169.18,0.03904754]
[1748542857039,0.04412605,169.22,169.18,0.03826169]
[1748542859440,0.04412605,169.22,169.2,5.9093]
[1748542859738,0.04412605,169.22,169.18,0.03826169]
[1748542860127,0.04412605,169.22,169.21,5.9092]
[1748542860532,0.04412605,169.22,169.18,0.03826169]
[1748542860732,0.04412605,169.22,169.19,5.9096]
[1748542860935,0.04412605,169.22,169.18,0.03826169]
[1748542861234,5.95322605,169.22,169.19,5.9097]
[1748542861536,0.04412605,169.22,169.19,5.9097]
[1748542862339,0.04412605,169.22,169.18,0.03826169]
[1748542863031,0.04412605,169.22,169.19,5.9096]
[1748542863228,5.95302605,169.22,169.19,5.9096]
[1748542863436,5.95302605,169.22,169.18,0.03826169]
[1748542863943,0.04412605,169.22,169.18,0.03826169]
[1748542864338,0.04412605,169.22,169.2,5.9093]
[1748542864741,0.04412605,169.22,169.18,0.03826169]
[1748542865639,0.04412605,169.22,169.21,5.9092]
[1748542867450,0.04412605,169.22,169.2,39.2894]
[1748542867748,0.04412605,169.22,169.2,33.38]
[1748542868442,0.04412605,169.22,169.21,5.9092]
[1748542869743,0.04412605,169.22,169.2,39.2894]
[1748542869942,5.95302605,169.22,169.2,33.38]
[1748542870359,0.04412605,169.22,169.18,0.03826169]
[1748542870644,5.9099,169.19,169.18,0.03826169]
[1748542871341,0.04412605,169.22,169.18,0.03826169]
[1748542872251,5.9099,169.19,169.18,0.03826169]
[1748542874144,5.9099,169.19,169.09,2.0646]
[1748542874145,9.94030892,169.21,169.09,35.4446]
[1748542874354,43.32030892,169.21,169.09,35.4446]
[1748542874752,33.38,169.21,169.09,35.4446]
[1748542875052,0.04249835,169.17,169.13,0.04165974]
[1748542875855,0.04249835,169.17,169.15,5.9113]
[1748542876452,0.04249835,169.17,169.16,5.911]
[1748542876961,5.9093,169.21,169.15,3.9706]
[1748542877548,5.9089,169.22,169.15,3.9706]
[1748542877748,0.04001757,169.2,169.17,0.04189347]
[1748542879257,0.04001757,169.2,169.18,5.91]
[1748542880256,0.04001757,169.2,169.17,0.04189347]
[1748542880257,0.04001757,169.2,169.19,5.9099]
[1748542880457,0.04001757,169.2,169.17,0.04189347]
[1748542880646,0.04001757,169.2,169.18,5.9102]
[1748542881055,0.04001757,169.2,169.17,0.04189347]
[1748542881257,0.04001757,169.2,169.09,33.38]
[1748542881462,9.94030892,169.22,169.09,33.38]
[1748542881762,33.38,169.21,169.09,33.38]
[1748542882351,0.04402504,169.17,169.13,0.04226462]
[1748542882954,5.9114,169.15,169.13,0.04226462]
[1748542883559,0.04402504,169.17,169.14,5.9115]
[1748542884558,5.95472504,169.17,169.14,5.9115]
[1748542884864,0.04402504,169.17,169.14,5.9115]
[1748542885362,5.95482504,169.17,169.14,5.9115]
[1748542887658,0.04402504,169.17,169.15,5.9111]
[1748542887862,0.04402504,169.17,169.13,0.04226462]
[1748542888168,39.8342,169.25,169.14,33.82]
[1748542888377,5.9092,169.22,169.18,5.91]
[1748542888661,5.9092,169.22,169.15,6.1135]
[1748542888865,5.9092,169.21,169.15,6.1135]
[1748542889163,0.04156807,169.2,169.16,0.04340131]
[1748542889867,0.04156807,169.2,169.19,5.9099]
[1748542890950,0.04156807,169.2,169.16,0.04340131]
[1748542891156,0.04156807,169.2,169.18,5.9101]
[1748542891352,0.04156807,169.2,169.16,0.04340131]
[1748542891965,0.04156807,169.2,169.19,5.9099]
[1748542896063,0.04156807,169.2,169.18,5.9102]
[1748542896561,0.04156807,169.2,169.19,5.9099]
[1748542899964,0.04156807,169.2,169.18,5.9101]
[1748542900169,0.04156807,169.2,169.16,0.04340131]
[1748542901370,5.9101,169.19,169.16,5.95410131]
[1748542901674,0.04156807,169.2,169.16,0.04340131]
[1748542901971,5.95126807,169.2,169.16,0.04340131]
[1748542902170,0.04156807,169.2,169.16,0.04340131]
[1748542902471,0.04156807,169.2,169.18,5.9101]
[1748542905672,0.04156807,169.2,169.19,5.9099]
[1748542907172,0.04156807,169.2,169.18,5.9102]
[1748542907374,0.04156807,169.2,169.16,33.86340131]
[1748542908275,5.9102,169.19,169.16,5.95400131]
[1748542908474,0.04156807,169.2,169.16,5.95400131]
[1748542909073,5.9101,169.19,169.17,5.9106]
[1748542909470,5.9101,169.19,169.16,0.04340131]
[1748542910267,5.95136807,169.2,169.17,5.9104]
[1748542910469,0.04156807,169.2,169.16,0.04340131]
[1748542910866,0.04156807,169.2,169.19,5.9099]
[1748542913975,0.04156807,169.2,169.18,5.91]
[1748542914364,0.04156807,169.2,169.16,6.01340131]
[1748542914365,0.04156807,169.2,169.16,2.06960131]
[1748542914564,0.04156807,169.2,169.17,5.9103]
[1748542914872,0.04156807,169.2,169.16,0.04340131]
[1748542915076,5.9106,169.17,169.16,0.04340131]
[1748542915774,5.9104,169.18,169.16,0.04340131]
[1748542915976,0.04156807,169.2,169.16,0.04340131]
[1748542916372,0.04156807,169.2,169.16,5.95420131]
[1748542916874,5.9105,169.18,169.16,0.04340131]
[1748542917571,5.9105,169.18,169.16,5.95440131]
[1748542918575,5.9105,169.18,169.16,0.04340131]
[1748542919575,11.8094,169.35,169.16,38.98371023]
[1748542919885,349.0,169.5,169.33,9.95240557]
[1748542919886,6.0117,169.48,169.33,9.95240557]
[1748542920175,6.0117,169.48,169.38,9.93920709]
[1748542920376,2.0175,169.48,169.41,9.93920709]
[1748542920673,0.04244819,169.46,169.43,0.03745006]
[1748542920972,0.03750193,169.46,169.43,5.006e-05]
[1748542921174,5.9012,169.44,169.43,5.006e-05]
[1748542921367,2.0082,169.45,169.43,5.006e-05]
[1748542921771,5.9012,169.44,169.43,5.006e-05]
[1748542922077,9.9173,169.44,169.43,5.006e-05]
[1748542922273,5.9031,169.39,169.3,36.446]
[1748542922671,47.09739557,169.44,169.3,36.446]
[1748542922869,5.9038,169.37,169.3,1.946]
[1748542923073,47.09739557,169.44,169.3,1.946]
[1748542923271,0.03832644,169.39,169.35,0.03780055]
[1748542923669,5.9033,169.38,169.35,0.03780055]
[1748542924170,0.03832644,169.39,169.35,0.03780055]
[1748542924775,5.904,169.36,169.35,0.03780055]
[1748542924970,0.03832644,169.39,169.35,0.03780055]
[1748542925278,5.904,169.36,169.35,0.03780055]
[1748542928371,5.904,169.36,169.35,5.5e-07]
[1748542928577,5.9064,169.29,169.28,34.5]
[1748542929478,5.94505818,169.3,169.28,34.5]
[1748542929679,0.03812823,169.31,169.28,34.5]
[1748542929877,0.04232613,169.31,169.28,34.54139702]
[1748542930380,5.9061,169.3,169.28,34.54139702]
[1748542930681,0.04232613,169.31,169.28,34.54139702]
[1748542931178,5.9061,169.3,169.28,34.54139702]
[1748542931481,0.04232613,169.31,169.28,34.54139702]
[1748542932272,5.9061,169.3,169.28,34.54139702]
[1748542932484,0.04232613,169.31,169.28,34.54139702]
[1748542933884,5.9061,169.3,169.28,34.54139702]
[1748542934381,0.04232613,169.31,169.28,34.54139702]
[1748542934981,5.9064,169.29,169.28,34.54139702]
[1748542935378,5.9064,169.29,169.28,0.04139702]
[1748542938487,0.04232613,169.31,169.28,0.04139702]
[1748542939196,5.9064,169.29,169.28,0.04139702]
[1748542939589,5.9061,169.3,169.28,0.04139702]
[1748542939788,0.04232613,169.31,169.28,0.04139702]
[1748542940192,0.04232613,169.31,169.28,5.94789702]
[1748542940494,0.04232613,169.31,169.28,0.04139702]
[1748542940796,0.04232613,169.31,169.3,5.9061]
[1748542941189,5.94802613,169.31,169.28,5.94809702]
[1748542941395,0.04232613,169.31,169.28,0.04139702]
[1748542942201,5.94822613,169.31,169.28,0.04139702]
[1748542943096,0.04232613,169.31,169.28,5.94789702]
[1748542943997,5.94822613,169.31,169.28,5.94789702]
[1748542944894,0.04232613,169.31,169.28,5.94789702]
[1748542945098,0.04232613,169.31,169.29,5.9063]
[1748542945604,0.04232613,169.31,169.29,5.9064]
[1748542945792,0.04232613,169.31,169.28,0.04139702]
[1748542946900,5.9063,169.3,169.28,0.04139702]
[1748542948498,5.94802613,169.31,169.28,0.04139702]
[1748542948701,0.04232613,169.31,169.28,0.04139702]
[1748542949090,5.9063,169.3,169.28,0.04139702]
[1748542949999,5.9064,169.29,169.28,0.04139702]
[1748542950497,0.04232613,169.31,169.28,0.04139702]
[1748542950702,5.9063,169.3,169.28,0.04139702]
[1748542951502,5.9064,169.29,169.28,0.04139702]
[1748542951799,0.04232613,169.31,169.18,34.48]
[1748542951998,2.0092,169.3,169.18,34.48]
[1748542952195,5.9078,169.26,169.22,5.9086]
[1748542952797,5.95230701,169.26,169.23,5.9084]
[1748542953102,0.04450701,169.26,169.19,9.95349102]
[1748542953397,0.04450701,169.26,169.25,5.9078]
[1748542955402,0.04450701,169.26,169.25,12.0545994]
[1748542956402,0.04450701,169.26,169.25,5.9078]
[1748542960409,0.04450701,169.26,169.25,12.05746529]
[1748542960906,34.48,169.32,169.28,5.9065]
[1748542961115,34.48,169.32,169.23,35.7984]
[1748542961313,34.48,169.32,169.24,8.51113132]
[1748542961505,34.48,169.32,169.25,2.36184643]
[1748542961706,0.0377952,169.3,169.27,0.04193062]
[1748542962414,0.0377952,169.3,169.27,5.94893062]
[1748542963015,5.9439952,169.3,169.27,5.94893062]
[1748542963216,5.9439952,169.3,169.28,5.9068]
[1748542963917,0.0377952,169.3,169.28,5.9068]
[1748542964812,0.0377952,169.3,169.27,0.04193062]
[1748542965014,0.0377952,169.3,169.28,6.16846375]
[1748542965215,0.0377952,169.3,169.27,0.04193062]
[1748542965411,0.0377952,169.3,169.29,5.9064]
[1748542965613,33.9,169.37,169.29,8.5361437]
[1748542965815,33.9,169.37,169.3,8.5361437]
[1748542966014,5.9045,169.35,169.31,8.53837841]
[1748542966213,5.9045,169.35,169.32,6.16693534]
[1748542966416,5.9041,169.36,169.28,47.83639102]
[1748542966617,0.04210864,169.34,169.3,0.04356487]
[1748542966820,0.04210864,169.34,169.31,8.53748136]
[1748542967013,0.04210864,169.34,169.32,6.16601989]
[1748542967212,0.04210864,169.34,169.3,0.04356487]
[1748542967420,0.04210864,169.34,169.31,8.53719104]
[1748542967620,5.94700864,169.34,169.32,6.16768153]
[1748542967823,5.94700864,169.34,169.31,5.9057]
[1748542968006,0.04210864,169.34,169.32,6.16742811]
[1748542968208,5.905,169.33,169.3,5.94946487]
[1748542968417,5.905,169.33,169.31,8.5478401]
[1748542968616,5.905,169.33,169.32,8.54811454]
[1748542968921,5.905,169.33,169.32,6.165085]
[1748542969619,5.905,169.33,169.32,6.16777264]
[1748542969920,0.04210864,169.34,169.3,0.04356487]
[1748542970313,5.9057,169.31,169.3,0.04356487]
[1748542970512,5.9057,169.31,169.3,8.5936936]
[1748542970720,5.9057,169.31,169.3,2.42545392]
[1748542970923,5.9057,169.31,169.3,8.59589317]
[1748542972022,5.9057,169.31,169.3,8.60678983]
[1748542972222,5.9057,169.31,169.3,8.60679904]
[1748542972724,5.9057,169.31,169.3,6.22261976]
[1748542974121,5.9057,169.31,169.3,6.22319708]
[1748542974325,5.9057,169.31,169.3,0.04356487]
[1748542974517,5.9057,169.31,169.3,6.22344511]
[1748542974719,5.9057,169.31,169.3,0.04356487]
[1748542975019,5.9057,169.31,169.3,6.22399354]
[1748542975218,5.9057,169.31,169.3,0.04356487]
[1748542975625,5.9057,169.31,169.3,6.22725855]
[1748542977221,5.9057,169.31,169.3,6.22725732]
[1748542977424,5.9057,169.31,169.3,6.22719442]
[1748542977725,5.9057,169.31,169.3,0.04356487]
[1748542978419,5.9057,169.31,169.3,6.22762649]
[1748542979122,0.04210864,169.34,169.3,6.22847689]
[1748542979422,0.04210864,169.34,169.3,0.04356487]
[1748542980121,5.9057,169.31,169.3,0.04356487]
[1748542980519,0.04210864,169.34,169.3,0.04356487]
[1748542982026,0.04210864,169.34,169.31,2.38243631]
[1748542982219,0.04210864,169.34,169.3,0.04356487]
[1748542982420,0.04210864,169.34,169.31,2.38264437]
[1748542982621,0.04210864,169.34,169.3,0.04356487]
[1748542982822,0.04210864,169.34,169.31,2.38265371]
[1748542983019,0.04210864,169.34,169.32,8.28749738]
[1748542983225,0.04210864,169.34,169.3,0.04356487]
[1748542983226,0.04210864,169.34,169.33,2.38258526]
[1748542983722,0.04210864,169.34,169.33,8.28758526]
[1748542984429,0.04210864,169.34,169.33,8.28799295]
[1748542984617,0.04210864,169.34,169.33,2.38299295]
[1748542984821,0.04210864,169.34,169.33,2.38317745]
[1748542985425,0.04210864,169.34,169.33,2.3828188]
[1748542985624,0.04210864,169.34,169.33,2.38283616]
[1748542986126,0.04210864,169.34,169.33,2.38289857]
[1748542986728,5.94680864,169.34,169.33,2.38289857]
[1748542987122,0.04210864,169.34,169.33,2.38289857]
[1748542987525,0.04210864,169.34,169.33,2.38247701]
[1748542988122,0.04210864,169.34,169.3,0.04356487]
[1748542988322,0.04210864,169.34,169.31,2.38239325]
[1748542988523,0.04210864,169.34,169.3,0.04356487]
[1748542988524,0.04210864,169.34,169.32,2.38177594]
[1748542988725,0.04210864,169.34,169.33,2.38177594]
[1748542988925,0.04210864,169.34,169.33,8.28677594]
[1748542989123,35.2466,169.41,169.33,2.38177594]
[1748542989428,35.2466,169.41,169.34,2.38177594]
[1748542989630,5.9035,169.38,169.35,8.28587594]
[1748542989822,5.9035,169.38,169.35,5.9041]
[1748542990230,5.94800292,169.38,169.35,5.94793569]
[1748542990418,5.94800292,169.38,169.35,0.04383569]
[1748542990826,0.04450292,169.38,169.35,0.04383569]
[1748542991128,0.04450292,169.38,169.36,8.28194572]
[1748542991325,0.04450292,169.38,169.36,5.9037]
[1748542991524,0.04450292,169.38,169.37,2.37766442]
[1748542991727,0.04450292,169.38,169.36,5.9037]
[1748542991924,0.04450292,169.38,169.35,5.94803569]
[1748542992123,0.04450292,169.38,169.36,2.37651123]
[1748542992319,5.94790292,169.38,169.35,5.94803569]
[1748542992524,5.94790292,169.38,169.36,2.37545149]
[1748542992720,5.94790292,169.38,169.35,5.94803569]
[1748542992921,5.94790292,169.38,169.36,2.3754788]
[1748542993127,0.04450292,169.38,169.36,2.3754788]
[1748542993327,0.04450292,169.38,169.35,0.04383569]
[1748542993529,5.9036,169.37,169.35,0.04383569]
[1748542993931,5.94790292,169.38,169.35,5.94813569]
[1748542994130,5.94790292,169.38,169.36,2.37435363]
[1748542994330,5.94790292,169.38,169.35,5.94813569]
[1748542995029,0.04450292,169.38,169.35,5.94813569]
[1748542995929,5.94810292,169.38,169.35,5.94813569]
[1748542996128,0.04450292,169.38,169.35,5.94813569]
[1748542996834,0.04450292,169.38,169.35,0.04383569]
[1748542997229,5.904,169.36,169.35,0.04383569]
[1748542998831,5.9038,169.37,169.35,0.04383569]
[1748542999036,0.04450292,169.38,169.35,0.04383569]
[1748542999240,0.04450292,169.38,169.35,5.94793569]
[1748542999641,5.94790292,169.38,169.35,5.94793569]
[1748542999836,5.94790292,169.38,169.35,5.94803569]
[1748543000542,5.94790292,169.38,169.35,0.04383569]
[1748543000543,0.04450292,169.38,169.35,0.04383569]
[1748543000941,0.04450292,169.38,169.36,5.9038]
[1748543002835,5.94780292,169.38,169.35,5.94803569]
[1748543003041,0.04450292,169.38,169.35,0.04383569]
[1748543003838,5.9039,169.37,169.35,0.04383569]
[1748543004044,0.04450292,169.38,169.35,0.04383569]
[1748543004349,5.904,169.36,169.35,0.04383569]
[1748543006143,5.9056,169.32,169.29,5.9063]
[1748543007049,5.94641296,169.32,169.29,5.95159158]
[1748543008046,0.04081296,169.32,169.31,5.9057]
[1748543008247,0.04081296,169.32,169.31,8.28140993]
[1748543008546,0.04081296,169.32,169.31,5.9057]
[1748543008744,0.04081296,169.32,169.31,8.28180982]
[1748543009145,0.04081296,169.32,169.31,8.28198078]
[1748543009346,0.04081296,169.32,169.31,8.2820032]
[1748543010450,33.2,169.42,169.36,5.9037]
[1748543010743,5.904,169.37,169.31,35.276]
[1748543010941,33.2,169.42,169.33,5.9049]
[1748543011143,33.2,169.42,169.31,35.276]
[1748543011344,0.03978339,169.38,169.35,0.04218321]
[1748543011945,5.9036,169.37,169.35,0.04218321]
[1748543012151,0.03978339,169.38,169.36,5.9038]
[1748543012537,0.03978339,169.38,169.35,0.04218321]
[1748543013144,5.94328339,169.38,169.35,5.94628321]
[1748543014149,5.9037,169.37,169.35,0.04218321]
[1748543014443,5.94318339,169.38,169.35,0.04218321]
[1748543014650,0.03978339,169.38,169.35,0.04218321]
[1748543015649,5.94328339,169.38,169.35,5.94638321]
[1748543015847,5.94328339,169.38,169.35,0.04218321]
[1748543016440,0.03978339,169.38,169.35,0.04218321]
[1748543017243,0.03978339,169.38,169.37,5.9036]
[1748543017746,0.03978339,169.38,169.36,5.9038]
[1748543019450,0.03978339,169.38,169.35,0.04218321]
[1748543019753,0.03978339,169.38,169.36,2.37684706]
[1748543020054,0.03978339,169.38,169.35,0.04218321]
[1748543020245,0.03978339,169.38,169.36,2.37683101]
[1748543020649,0.03978339,169.38,169.35,0.04218321]
[1748543020850,0.03978339,169.38,169.36,2.37730203]
[1748543021246,0.03978339,169.38,169.35,0.04218321]
[1748543021854,5.94328339,169.38,169.35,0.04218321]
[1748543022153,5.94328339,169.38,169.36,2.37803733]
[1748543023252,5.9038,169.37,169.35,0.04218321]
[1748543023654,0.03978339,169.38,169.35,0.04218321]
[1748543023956,5.904,169.36,169.35,0.04218321]
[1748543027556,5.9058,169.31,169.28,7.9059]
[1748543027751,42.67349102,169.38,169.29,2.38476051]
[1748543027950,5.8959,169.37,169.27,2.0748]
[1748543028147,5.8959,169.37,169.29,5.9064]
[1748543028350,5.8959,169.37,169.27,2.0748]
[1748543028551,0.04404649,169.34,169.3,0.03938982]
[1748543028949,5.9057,169.31,169.3,0.03938982]
[1748543029859,5.9056,169.32,169.3,0.03938982]
[1748543031155,0.04404649,169.34,169.3,0.03938982]
[1748543031552,5.9056,169.32,169.3,0.03938982]
[1748543032245,0.04404649,169.34,169.3,0.03938982]
[1748543032851,5.9057,169.31,169.3,0.03938982]
[1748543035960,5.9074,169.27,169.23,32.72]
[1748543036265,32.72,169.3,169.24,2.38061504]